fUSD/lending_fUSD_20241111
["ID","MTS","AMOUNT","RATE_DAILY","PERIOD"]
[341929519,1731307838787,-500.0,0.00014796,2]
[341929520,1731307838802,-500.0,0.00014796,2]
[341929521,1731307838812,-500.0,0.00014796,2]
[341929522,1731307838822,-503.25064528,0.00014796,2]
[341929523,1731307838832,-500.0,0.00014796,2]
[341929524,1731307838843,-509.96685707,0.00014796,2]
[341929525,1731307838853,-511.55114758,0.00014796,2]
[341929526,1731307838863,-503.62809929,0.00014796,2]
[341929527,1731307838872,-547.84213321,0.00014796,2]
[341929528,1731307838881,-298.69588533,0.00014796,2]
[341929529,1731307838891,-503.82154338,0.00014796,2]
[341929530,1731307838901,-502.8576718,0.00014796,2]
[341929532,1731307838911,-519.91412368,0.00014796,2]
[341929534,1731307838921,-506.17956904,0.00014796,2]
[341929535,1731307838930,-503.52846959,0.00014796,2]
[341929536,1731307838939,-501.65565681,0.00014796,2]
[341929537,1731307838949,-600.66977539,0.00014796,2]
[341929538,1731307838958,-505.03440265,0.00014796,2]
[341929539,1731307838968,-356.69988973,0.00014796,2]
[341929540,1731307838977,-503.28730223,0.00014796,2]
[341929541,1731307838987,-500.0,0.00014796,2]
[341929542,1731307838997,-503.00021731,0.00014796,2]
[341929543,1731307839006,-500.0,0.00014796,2]
[341929544,1731307839016,-508.25667411,0.00014796,2]
[341929545,1731307839026,-500.0,0.00014796,2]
[341929546,1731307839035,-502.06489477,0.00014796,2]
[341929547,1731307839045,-501.35457383,0.00014796,2]
[341929548,1731307839055,-518.94252155,0.00014796,2]
[341929549,1731307839064,-500.0,0.00014796,2]
[341929550,1731307839074,-503.63771584,0.00014796,2]
[341929551,1731307839084,-501.82530624,0.00014796,2]
[341929552,1731307839094,-506.30374766,0.00014796,2]
[341929553,1731307839104,-503.36833054,0.00014796,2]
[341929554,1731307839113,-502.81326368,0.00014796,2]
[341929555,1731307839123,-501.14045067,0.00014796,2]
[341929556,1731307839134,-502.80151413,0.00014796,2]
[341929557,1731307839144,-503.19862018,0.00014796,2]
[341929558,1731307839154,-501.23792853,0.00014796,2]
[341929559,1731307839163,-519.59,0.00014796,2]
[341929560,1731307839173,-589.94755423,0.00014796,2]
[341929561,1731307839183,-501.9747697,0.00014796,2]
[341929562,1731307839192,-502.20100253,0.00014796,2]
[341929563,1731307839202,-628.07,0.00014796,2]
[341929564,1731307839211,-503.73861918,0.00014796,2]
[341929565,1731307839221,-500.87592431,0.00014796,2]
[341929566,1731307839230,-504.85185848,0.00014796,2]
[341929567,1731307839240,-500.0,0.00014796,2]
[341929568,1731307839250,-500.0,0.00014796,2]
[341929569,1731307839259,-500.0,0.00014796,2]
[341929570,1731307839269,-500.0,0.00014796,2]
[341929571,1731307839281,-507.51735074,0.00014796,2]
[341929572,1731307839290,-500.0,0.00014796,2]
[341929573,1731307839300,-500.0,0.00014796,2]
[341929574,1731307839313,-500.0,0.00014796,2]
[341929575,1731307839323,-500.0,0.00014796,2]
[341929576,1731307839333,-500.0,0.00014796,2]
[341929577,1731307839343,-522.83146601,0.00014796,2]
[341929578,1731307839352,-535.92187846,0.00014796,2]
[341929579,1731307839362,-500.0,0.00014796,2]
[341929580,1731307839372,-500.0,0.00014796,2]
[341929581,1731307839383,-500.0,0.00014796,2]
[341929582,1731307839394,-541.64702299,0.00014796,2]
[341929583,1731307839403,-523.69699829,0.00014796,2]
[341929584,1731307839413,-502.05164249,0.00014796,2]
[341929585,1731307839422,-500.0,0.00014796,2]
[341929586,1731307839431,-500.0,0.00014796,2]
[341929587,1731307839441,-500.0,0.00014796,2]
[341929588,1731307839450,-500.0,0.00014796,2]
[341929589,1731307839459,-317.66547122,0.00014796,2]
[341929590,1731307839470,-501.60441161,0.00014796,2]
[341929591,1731307839479,-500.0,0.00014796,2]
[341929592,1731307839489,-540.82024787,0.00014796,2]
[341929593,1731307839499,-501.98762613,0.00014796,2]
[341929594,1731307839509,-500.0,0.00014796,2]
[341929595,1731307839519,-523.63697752,0.00014796,2]
[341929596,1731307839534,-500.0,0.00014796,2]
[341929597,1731307839543,-511.38994063,0.00014796,2]
[341929598,1731307839553,-87.60133865,0.00014796,2]
[341929599,1731307839575,-412.39866135,0.00014796,2]
[341929600,1731307839585,-500.0,0.00014796,2]
[341929601,1731307839595,-500.0,0.00014796,2]
[341929602,1731307839604,-510.915932,0.00014796,2]
[341929603,1731307839613,-510.19876295,0.00014796,2]
[341929604,1731307839623,-500.0,0.00014796,2]
[341929605,1731307839633,-502.8279874,0.00014796,2]
[341929606,1731307839642,-505.02656782,0.00014796,2]
[341929607,1731307839652,-503.33460506,0.00014796,2]
[341929608,1731307839661,-500.0,0.00014796,2]
[341929609,1731307839671,-500.0,0.00014796,2]
[341929610,1731307839681,-502.65741195,0.00014796,2]
[341929611,1731307839690,-500.0,0.00014796,2]
[341929612,1731307839700,-505.83565283,0.00014796,2]
[341929613,1731307839710,-504.35763253,0.00014796,2]
[341929614,1731307839719,-557.34826423,0.00014796,2]
[341929615,1731307839728,-501.34833846,0.00014796,2]
[341929616,1731307839738,-520.67988104,0.00014796,2]
[341929617,1731307839747,-500.0,0.00014796,2]
[341929618,1731307839756,-501.47844241,0.00014796,2]
[341929619,1731307839766,-501.06356202,0.00014796,2]
[341929620,1731307839775,-500.93492764,0.00014796,2]
[341929621,1731307839785,-503.05075187,0.00014796,2]
[341929622,1731307839794,-500.0,0.00014796,2]
[341929623,1731307839803,-500.0,0.00014796,2]
[341929624,1731307839812,-512.01440655,0.00014796,2]
[341929625,1731307839822,-500.64768268,0.00014796,2]
[341929626,1731307839831,-403.25065655,0.00014796,2]
[341929627,1731307839840,-521.95332199,0.00014796,2]
[341929628,1731307839849,-500.0,0.00014796,2]
[341929629,1731307839859,-500.0,0.00014796,2]
[341929630,1731307839867,-511.12601192,0.00014796,2]
[341929631,1731307839877,-500.0,0.00014796,2]
[341929632,1731307839886,-500.0,0.00014796,2]
[341929633,1731307839895,-500.83492402,0.00014796,2]
[341929634,1731307839904,-356.18334951,0.00014796,2]
[341929635,1731307839913,-515.84256899,0.00014796,2]
[341929636,1731307839922,-500.73072424,0.00014796,2]
[341929637,1731307839931,-524.27295363,0.00014796,2]
[341929638,1731307839941,-500.84877064,0.00014796,2]
[341929639,1731307839950,-500.0,0.00014796,2]
[341929640,1731307839959,-500.0,0.00014796,2]
[341929641,1731307839969,-150.0,0.00014796,2]
[341929642,1731307839979,-500.0,0.00014796,2]
[341929643,1731307839988,-500.0,0.00014796,2]
[341929644,1731307839997,-564.97933969,0.00014796,2]
[341929645,1731307840006,-500.0,0.00014796,2]
[341929646,1731307840016,-500.0,0.00014796,2]
[341929647,1731307840027,-456.25983719,0.00014796,2]
[341929648,1731307840036,-582.88846231,0.00014796,2]
[341929649,1731307840046,-500.0,0.00014796,2]
[341929650,1731307840055,-501.19112638,0.00014796,2]
[341929651,1731307840065,-500.0,0.00014796,2]
[341929652,1731307840075,-500.0,0.00014796,2]
[341929653,1731307840085,-508.51682793,0.00014796,2]
[341929654,1731307840094,-526.74719713,0.00014796,2]
[341929655,1731307840103,-500.80178564,0.00014796,2]
[341929656,1731307840113,-501.13698638,0.00014796,2]
[341929657,1731307840122,-503.04945163,0.00014796,2]
[341929658,1731307840132,-515.63791605,0.00014796,2]
[341929659,1731307840141,-528.24833199,0.00014796,2]
[341929660,1731307840151,-530.80063578,0.00014796,2]
[341929661,1731307840160,-500.0,0.00014796,2]
[341929662,1731307840170,-358.45643181,0.00014796,2]
[341929663,1731307840180,-500.0,0.00014796,2]
[341929664,1731307840189,-500.0,0.00014796,2]
[341929665,1731307840199,-500.0,0.00014796,2]
[341929666,1731307840208,-500.0,0.00014796,2]
[341929667,1731307840218,-500.0,0.00014796,2]
[341929668,1731307840227,-504.13614409,0.00014796,2]
[341929669,1731307840237,-500.0,0.00014796,2]
[341929670,1731307840247,-500.0,0.00014796,2]
[341929671,1731307840257,-500.0,0.00014796,2]
[341929672,1731307840266,-502.35562501,0.00014796,2]
[341929673,1731307840279,-500.0,0.00014796,2]
[341929674,1731307840289,-500.0,0.00014796,2]
[341929675,1731307840300,-500.0,0.00014796,2]
[341929676,1731307840314,-500.0,0.00014796,2]
[341929677,1731307840325,-582.65187536,0.00014796,2]
[341929678,1731307840335,-500.0,0.00014796,2]
[341929679,1731307840346,-505.61461472,0.00014796,2]
[341929680,1731307840358,-577.15184113,0.00014796,2]
[341929681,1731307840367,-514.02686063,0.00014796,2]
[341929682,1731307840378,-502.19459168,0.00014796,2]
[341929683,1731307840390,-500.0,0.00014796,2]
[341929684,1731307840401,-500.0,0.00014796,2]
[341929685,1731307840411,-511.52373512,0.00014796,2]
[341929686,1731307840420,-500.0,0.00014796,2]
[341929687,1731307840429,-500.0,0.00014796,2]
[341929688,1731307840439,-472.61918431,0.00014796,2]
[341929689,1731307840448,-500.0,0.00014796,2]
[341929690,1731307840458,-500.0,0.00014796,2]
[341929692,1731307840467,-500.0,0.00014796,2]
[341929693,1731307840477,-498.3810833,0.00014796,2]
[341929694,1731307840488,-500.0,0.00014796,2]
[341929695,1731307840498,-500.0,0.00014796,2]
[341929696,1731307840507,-595.52709401,0.00014796,2]
[341929697,1731307840517,-500.0,0.00014796,2]
[341929698,1731307840536,-605.68740208,0.00014796,2]
[341929699,1731307840546,-565.8,0.00014796,2]
[341929700,1731307840556,-500.0,0.00014796,2]
[341929701,1731307840566,-505.58089473,0.00014796,2]
[341929702,1731307840576,-257.18032574,0.00014796,2]
[341929703,1731307840586,-527.05767128,0.00014796,2]
[341929704,1731307840595,-500.32187969,0.00014796,2]
[341929705,1731307840605,-500.0,0.00014796,2]
[341929706,1731307840615,-500.0,0.00014796,2]
[341929707,1731307840626,-500.0,0.00014796,2]
[341929708,1731307840636,-500.0,0.00014796,2]
[341929709,1731307840646,-500.0,0.00014796,2]
[341929710,1731307840655,-500.0,0.00014796,2]
[341929711,1731307840664,-500.0,0.00014796,2]
[341929712,1731307840673,-500.0,0.00014796,2]
[341929713,1731307840683,-250.0,0.00014796,2]
[341929714,1731307840692,-500.0,0.00014796,2]
[341929715,1731307840702,-500.0,0.00014796,2]
[341929716,1731307840711,-500.0,0.00014796,2]
[341929717,1731307840720,-500.0,0.00014796,2]
[341929718,1731307840729,-500.0,0.00014796,2]
[341929719,1731307840739,-500.0,0.00014796,2]
[341929720,1731307840749,-500.0,0.00014796,2]
[341929721,1731307840758,-500.0,0.00014796,2]
[341929722,1731307840768,-500.0,0.00014796,2]
[341929723,1731307840785,-500.0,0.00014796,2]
[341929724,1731307840795,-500.0,0.00014796,2]
[341929725,1731307840805,-500.0,0.00014796,2]
[341929726,1731307840814,-500.0,0.00014796,2]
[341929727,1731307840825,-500.0,0.00014796,2]
[341929728,1731307840837,-500.0,0.00014796,2]
[341929729,1731307840849,-500.0,0.00014796,2]
[341929730,1731307840862,-500.0,0.00014796,2]
[341929731,1731307840876,-500.0,0.00014796,2]
[341929732,1731307840886,-500.0,0.00014796,2]
[341929733,1731307840898,-500.0,0.00014796,2]
[341929734,1731307840908,-500.0,0.00014796,2]
[341929735,1731307840919,-500.0,0.00014796,2]
[341929736,1731307840929,-500.0,0.00014796,2]
[341929737,1731307840939,-3904.84,0.00014796,2]
[341929738,1731307840950,-500.0,0.00014796,2]
[341929739,1731307840962,-502.65801708,0.00014796,2]
[341929740,1731307840972,-500.0,0.00014796,2]
[341929741,1731307840984,-500.0,0.00014796,2]
[341929742,1731307840995,-670.21,0.00014796,2]
[341929743,1731307841005,-670.21,0.00014796,2]
[341929744,1731307841015,-670.21,0.00014796,2]
[341929745,1731307841030,-500.0,0.00014796,2]
[341929746,1731307841040,-500.0,0.00014796,2]
[341929747,1731307841050,-500.0,0.00014796,2]
[341929748,1731307841060,-500.0,0.00014796,2]
[341929749,1731307841070,-336.27831699,0.00014796,2]
[341929750,1731307841079,-500.0,0.00014796,2]
[341929751,1731307841088,-500.0,0.00014796,2]
[341929752,1731307841098,-500.0,0.00014796,2]
[341929753,1731307841107,-500.0,0.00014796,2]
[341929754,1731307841116,-292.89088572,0.00014796,2]
[341929755,1731307841126,-294.07003009,0.00014796,2]
[341929756,1731307841135,-539.15,0.00014796,2]
[341929757,1731307841146,-500.0,0.00014796,2]
[341929758,1731307841155,-500.0,0.00014796,2]
[341929759,1731307841165,-164.75,0.00014796,2]
[341929760,1731307841175,-500.0,0.00014796,2]
[341929761,1731307841184,-500.0,0.00014796,2]
[341929762,1731307841193,-500.0,0.00014796,2]
[341929763,1731307841202,-500.0,0.00014796,2]
[341929764,1731307841212,-736.08,0.00014796,2]
[341929765,1731307841222,-736.08,0.00014796,2]
[341929766,1731307841232,-736.08,0.00014796,2]
[341929767,1731307841242,-736.08,0.00014796,2]
[341929768,1731307841251,-500.0,0.00014796,2]
[341929769,1731307841261,-889.18,0.00014796,2]
[341929770,1731307841271,-889.18,0.00014796,2]
[341929771,1731307841283,-889.18,0.00014796,2]
[341929772,1731307841292,-889.18,0.00014796,2]
[341929773,1731307841304,-1232.4,0.00014796,2]
[341929774,1731307841315,-500.0,0.00014796,2]
[341929775,1731307841323,-500.0,0.00014796,2]
[341929776,1731307841330,-500.0,0.00014796,2]
[341929777,1731307841337,-500.0,0.00014796,2]
[341929778,1731307841345,-500.0,0.00014796,2]
[341929779,1731307841352,-285.25,0.00014796,2]
[341929780,1731307841362,-500.0,0.00014796,2]
[341929781,1731307841372,-500.0,0.00014796,2]
[341929782,1731307841383,-500.0,0.00014796,2]
[341929783,1731307841392,-500.0,0.00014796,2]
[341929784,1731307841402,-500.0,0.00014796,2]
[341929785,1731307841411,-500.0,0.00014796,2]
[341929786,1731307841421,-500.0,0.00014796,2]
[341929787,1731307841430,-218.97709993,0.00014796,2]
[341929788,1731307841440,-501.96802491,0.00014796,2]
[341929789,1731307841449,-500.0,0.00014796,2]
[341929790,1731307841459,-500.0,0.00014796,2]
[341929791,1731307841468,-500.0,0.00014796,2]
[341929792,1731307841477,-400.35986313,0.00014796,2]
[341929793,1731307841486,-500.0,0.00014796,2]
[341929794,1731307841495,-500.0,0.00014796,2]
[341929795,1731307841505,-500.0,0.00014796,2]
[341929796,1731307841514,-510.42578146,0.00014796,2]
[341929797,1731307841523,-500.0,0.00014796,2]
[341929798,1731307841535,-500.0,0.00014796,2]
[341929799,1731307841545,-500.0,0.00014796,2]
[341929800,1731307841555,-500.0,0.00014796,2]
[341929801,1731307841564,-500.0,0.00014796,2]
[341929802,1731307841574,-500.0,0.00014796,2]
[341929803,1731307841583,-500.0,0.00014796,2]
[341929804,1731307841592,-416.81488695,0.00014796,2]
[341929805,1731307841602,-500.0,0.00014796,2]
[341929806,1731307841612,-500.0,0.00014796,2]
[341929807,1731307841621,-500.0,0.00014796,2]
[341929808,1731307841630,-500.0,0.00014796,2]
[341929809,1731307841639,-500.0,0.00014796,2]
[341929810,1731307841649,-263.74617415,0.00014796,2]
[341929811,1731307841659,-506.01926235,0.00014796,2]
[341929812,1731307841669,-292.46,0.00014796,2]
[341929813,1731307841678,-186.57,0.00014796,2]
[341929814,1731307841688,-384.85141094,0.00014796,2]
[341929815,1731307841698,-500.0,0.00014796,2]
[341929816,1731307841708,-500.0,0.00014796,2]
[341929817,1731307841718,-500.0,0.00014796,2]
[341929818,1731307841728,-500.0,0.00014796,2]
[341929819,1731307841738,-500.0,0.00014796,2]
[341929820,1731307841747,-500.0,0.00014796,2]
[341929821,1731307841757,-500.0,0.00014796,2]
[341929822,1731307841766,-500.0,0.00014796,2]
[341929823,1731307841776,-244.89,0.00014796,2]
[341929824,1731307841785,-500.0,0.00014796,2]
[341929825,1731307841794,-500.0,0.00014796,2]
[341929826,1731307841803,-264.75252206,0.00014796,2]
[341929827,1731307841812,-500.0,0.00014796,2]
[341929828,1731307841821,-453.15,0.00014796,2]
[341929829,1731307841831,-504.19622232,0.00014796,2]
[341929830,1731307841841,-500.0,0.00014796,2]
[341929831,1731307841851,-500.0,0.00014796,2]
[341929832,1731307841860,-500.0,0.00014796,2]
[341929833,1731307841870,-500.0,0.00014796,2]
[341929834,1731307841880,-168.10957239,0.00014796,2]
[341929835,1731307841889,-500.0,0.00014796,2]
[341929836,1731307841898,-500.0,0.00014796,2]
[341929837,1731307841908,-261.27,0.00014796,2]
[341929838,1731307841917,-500.0,0.00014796,2]
[341929839,1731307841926,-500.0,0.00014796,2]
[341929840,1731307841935,-172.11,0.00014796,2]
[341929841,1731307841945,-182.05659452,0.00014796,2]
[341929842,1731307841954,-691946.49686229,0.00014796,2]
[341929843,1731307841964,-13175.09488379,0.00014796,2]
[341929844,1731307841973,-500.0,0.00014797,2]
[341929845,1731307841983,-500.0,0.00014797,2]
[341929846,1731307841993,-152.649394,0.00014797,2]
[341929847,1731307842003,-500.0,0.00014797,2]
[341929848,1731307842012,-515.32612446,0.00014797,2]
[341929849,1731307842022,-500.0,0.00014797,2]
[341929850,1731307842032,-450.29648396,0.00014797,2]
[341929851,1731307842042,-533.7384448,0.00014797,2]
[341929852,1731307842052,-200.23674238,0.00014797,2]
[341929853,1731307842062,-535.01,0.00014797,2]
[341929854,1731307842072,-500.0,0.00014797,2]
[341929855,1731307842083,-500.0,0.00014797,2]
[341929856,1731307842093,-500.0,0.00014797,2]
[341929857,1731307842103,-500.0,0.00014797,2]
[341929858,1731307842114,-151.0,0.00014797,2]
[341929859,1731307842312,-500.0,0.00014797,2]
[341929860,1731307842322,-500.0,0.00014797,2]
[341929861,1731307842332,-155.678851,0.00014797,2]
[341929862,1731307842343,-506.80428787,0.00014797,2]
[341929863,1731307842353,-151.0,0.00014797,2]
[341929864,1731307842363,-500.0,0.00014797,2]
[341929865,1731307842372,-500.0,0.00014797,2]
[341929866,1731307842383,-500.0,0.00014797,2]
[341929867,1731307842393,-191.74781309,0.00014797,2]
[341929868,1731307842402,-229.518864,0.00014797,2]
[341929869,1731307842411,-229.518864,0.00014797,2]
[341929870,1731307842421,-151.0,0.00014797,2]
[341929871,1731307842430,-151.0,0.00014797,2]
[341929872,1731307842440,-507.11074105,0.00014797,2]
[341929873,1731307842450,-500.0,0.00014797,2]
[341929874,1731307842459,-500.0,0.00014797,2]
[341929875,1731307842469,-588.69433502,0.00014797,2]
[341929876,1731307842479,-500.0,0.00014797,2]
[341929877,1731307842488,-500.0,0.00014797,2]
[341929878,1731307842498,-518.90573089,0.00014797,2]
[341929879,1731307842508,-500.0,0.00014797,2]
[341929880,1731307842517,-500.0,0.00014797,2]
[341929881,1731307842527,-500.0,0.00014797,2]
[341929882,1731307842537,-151.0,0.00014797,2]
[341929883,1731307842547,-151.0,0.00014797,2]
[341929884,1731307842558,-298.55018577,0.00014797,2]
[341929885,1731307842568,-500.0,0.00014797,2]
[341929886,1731307842577,-393.52816663,0.00014797,2]
[341929887,1731307842587,-151.0,0.00014797,2]
[341929888,1731307842597,-151.0,0.00014797,2]
[341929889,1731307842606,-500.0,0.00014797,2]
[341929890,1731307842615,-500.0,0.00014797,2]
[341929891,1731307842625,-500.0,0.00014797,2]
[341929892,1731307842634,-289.68,0.00014797,2]
[341929893,1731307842644,-522.26,0.00014797,2]
[341929894,1731307842654,-287.79810436,0.00014797,2]
[341929895,1731307842663,-500.0,0.00014797,2]
[341929896,1731307842673,-303.94383267,0.00014797,2]
[341929897,1731307842682,-500.0,0.00014797,2]
[341929898,1731307842692,-500.0,0.00014797,2]
[341929899,1731307842701,-332.74892745,0.00014797,2]
[341929900,1731307842710,-453.66424101,0.00014797,2]
[341929901,1731307842720,-165.51882476,0.00014797,2]
[341929902,1731307842729,-240.52145534,0.00014797,2]
[341929903,1731307842739,-527.33400423,0.00014797,2]
[341929904,1731307842748,-398.67434659,0.00014797,2]
[341929905,1731307842757,-500.0,0.00014797,2]
[341929906,1731307842767,-173.51733661,0.00014797,2]
[341929907,1731307842776,-151.0,0.00014797,2]
[341929908,1731307842786,-151.861951,0.00014797,2]
[341929909,1731307842795,-151.0,0.00014797,2]
[341929910,1731307842805,-572.83,0.00014797,2]
[341929911,1731307842814,-151.0,0.00014797,2]
[341929912,1731307842823,-151.0,0.00014797,2]
[341929913,1731307842833,-151.0,0.00014797,2]
[341929914,1731307842842,-151.0,0.00014797,2]
[341929915,1731307842852,-575.13167269,0.00014797,2]
[341929916,1731307842862,-510.19496289,0.00014797,2]
[341929917,1731307842871,-500.0,0.00014797,2]
[341929918,1731307842881,-500.0,0.00014797,2]
[341929919,1731307842891,-500.0,0.00014797,2]
[341929920,1731307842901,-500.0,0.00014797,2]
[341929921,1731307842911,-500.0,0.00014797,2]
[341929922,1731307842921,-500.0,0.00014797,2]
[341929923,1731307842930,-500.0,0.00014797,2]
[341929924,1731307842939,-500.0,0.00014797,2]
[341929925,1731307842949,-507.20173164,0.00014797,2]
[341929926,1731307842959,-150.0,0.00014797,2]
[341929927,1731307842969,-150.0,0.00014797,2]
[341929928,1731307842978,-204.64279615,0.00014797,2]
[341929929,1731307842987,-500.0,0.00014797,2]
[341929930,1731307842997,-581.48264512,0.00014797,2]
[341929931,1731307843007,-601.61719944,0.00014797,2]
[341929932,1731307843017,-260.43820628,0.00014797,2]
[341929933,1731307843026,-506.11338356,0.00014797,2]
[341929934,1731307843036,-500.0,0.00014797,2]
[341929935,1731307843046,-500.0,0.00014797,2]
[341929937,1731307843056,-500.0,0.00014797,2]
[341929939,1731307843065,-523.87,0.00014797,2]
[341929941,1731307843075,-500.0,0.00014797,2]
[341929943,1731307843085,-500.0,0.00014797,2]
[341929944,1731307843094,-199.2,0.00014797,2]
[341929945,1731307843104,-316.94153459,0.00014797,2]
[341929946,1731307843114,-500.0,0.00014797,2]
[341929947,1731307843123,-500.0,0.00014797,2]
[341929948,1731307843132,-500.0,0.00014797,2]
[341929949,1731307843142,-357.20304596,0.00014797,2]
[341929950,1731307843152,-500.0,0.00014797,2]
[341929951,1731307843162,-500.0,0.00014797,2]
[341929952,1731307843172,-500.0,0.00014797,2]
[341929953,1731307843182,-500.0,0.00014797,2]
[341929954,1731307843191,-500.0,0.00014797,2]
[341929955,1731307843200,-500.0,0.00014797,2]
[341929956,1731307843209,-500.0,0.00014797,2]
[341929957,1731307843219,-500.0,0.00014797,2]
[341929958,1731307843228,-500.0,0.00014797,2]
[341929959,1731307843238,-500.0,0.00014797,2]
[341929960,1731307843248,-208.14,0.00014797,2]
[341929961,1731307843257,-500.0,0.00014797,2]
[341929962,1731307843267,-500.0,0.00014797,2]
[341929963,1731307843276,-500.0,0.00014797,2]
[341929964,1731307843286,-500.0,0.00014797,2]
[341929965,1731307843295,-500.0,0.00014797,2]
[341929966,1731307843308,-500.0,0.00014797,2]
[341929967,1731307843317,-500.0,0.00014797,2]
[341929968,1731307843327,-201.34391619,0.00014797,2]
[341929969,1731307843337,-158.30019,0.00014797,2]
[341929970,1731307843346,-500.0,0.00014797,2]
[341929971,1731307843356,-500.0,0.00014797,2]
[341929972,1731307843366,-500.0,0.00014797,2]
[341929973,1731307843375,-158.30019,0.00014797,2]
[341929974,1731307843387,-158.30019,0.00014797,2]
[341929975,1731307843398,-500.0,0.00014797,2]
[341929976,1731307843408,-500.0,0.00014797,2]
[341929977,1731307843417,-500.0,0.00014797,2]
[341929978,1731307843427,-426.61551341,0.00014797,2]
[341929979,1731307843436,-500.0,0.00014797,2]
[341929980,1731307843446,-500.0,0.00014797,2]
[341929981,1731307843455,-500.0,0.00014797,2]
[341929982,1731307843465,-158.30019,0.00014797,2]
[341929983,1731307843475,-158.30019,0.00014797,2]
[341929984,1731307843484,-158.30019,0.00014797,2]
[341929985,1731307843494,-500.0,0.00014797,2]
[341929986,1731307843503,-500.0,0.00014797,2]
[341929987,1731307843513,-500.0,0.00014797,2]
[341929988,1731307843522,-565.8,0.00014797,2]
[341929989,1731307843531,-565.8,0.00014797,2]
[341929990,1731307843541,-565.8,0.00014797,2]
[341929991,1731307843551,-500.0,0.00014797,2]
[341929992,1731307843561,-500.0,0.00014797,2]
[341929993,1731307843571,-500.0,0.00014797,2]
[341929994,1731307843581,-266.058456,0.00014797,2]
[341929995,1731307843591,-266.058456,0.00014797,2]
[341929996,1731307843600,-266.058456,0.00014797,2]
[341929997,1731307843610,-266.058456,0.00014797,2]
[341929998,1731307843620,-266.058456,0.00014797,2]
[341929999,1731307843630,-266.058456,0.00014797,2]
[341930000,1731307843639,-500.0,0.00014797,2]
[341930001,1731307843649,-500.0,0.00014797,2]
[341930002,1731307843659,-500.0,0.00014797,2]
[341930003,1731307843668,-500.0,0.00014797,2]
[341930004,1731307843678,-500.0,0.00014797,2]
[341930005,1731307843688,-500.0,0.00014797,2]
[341930006,1731307843698,-500.0,0.00014797,2]
[341930007,1731307843707,-500.0,0.00014797,2]
[341930008,1731307843716,-191.6,0.00014797,2]
[341930009,1731307843726,-151.655493,0.00014797,2]
[341930010,1731307843735,-151.655493,0.00014797,2]
[341930011,1731307843745,-151.655493,0.00014797,2]
[341930012,1731307843755,-500.0,0.00014797,2]
[341930013,1731307843764,-529.95581429,0.00014797,2]
[341930014,1731307843774,-151.655493,0.00014797,2]
[341930015,1731307843784,-151.655493,0.00014797,2]
[341930016,1731307843793,-151.655493,0.00014797,2]
[341930017,1731307843803,-151.0,0.00014797,2]
[341930018,1731307843813,-166.540395,0.00014797,2]
[341930019,1731307843822,-151.0,0.00014797,2]
[341930020,1731307843831,-151.0,0.00014797,2]
[341930022,1731307843841,-151.0,0.00014797,2]
[341930024,1731307843850,-151.0,0.00014797,2]
[341930026,1731307843860,-500.96900642,0.00014797,2]
[341930028,1731307843870,-500.0,0.00014797,2]
[341930030,1731307843879,-500.0,0.00014797,2]